{"text_format":"1","workbook":"xlsx","n_sheets":3,"sheets":["Registre loueur classé ","Registre loueur non classé","MEMO"],"not_rendered":{"charts":0,"images":2,"macros":1,"external_links":0,"defined_names":1,"comments":0,"pivot_tables":0},"unopened":[],"bounds":{"document_bytes":16777216,"sheet_cells":100000,"rows_first":2000,"rows_last":500,"rows_between":2000,"halvings":0,"cell_chars":16384,"cell_head_chars":4096},"cells_cut":0,"cells_raw":0,"read":"whole","date_system":"1900"}

{"sheet":"Registre loueur classé ","index":0,"n_rows":50,"n_cols":8,"rows_kept":50,"cut":false,"hidden":false,"merged":[[7,2,7,7],[8,2,8,7],[9,0,9,1],[10,0,10,1],[10,2,10,4],[9,6,9,7],[0,0,0,7],[1,0,1,7],[6,1,6,3],[6,5,6,7],[3,0,3,7],[2,0,2,7]]}
["COMMUNAUTE DE COMMUNES TERRES TOULOISES"]
["Rue du Mémorial du Génie, CS 40 325 Ecrouves, 54 201 Toul cedex - Tél 03.83.43.2376  / contact@terrestouloises.com "]
["REGISTRE DU LOUEUR"]
["pour les hébergements classés"]
["Mois",null,null,"Année",null," "]
[]
["Etablissement :",null,null,null,"Nom du propriétaire :"]
["Adresse de l'établissement :"]
["Adresse du proriétaire :"]
["Capacité totale d'accueil :",null,null,null,"Nb de chambres :",null,"Montant à titre d'exemple, se réferer au MEMO"]
["Nature et Classement de l'hébergement :",null,null,null,null,null,"Montant taxe de séjour par personne et par nuité :"]
[]
[1,2,3,4,5,6,8,9]
["Dates d'arrivée","Nombre de nuits (Durée du séjour)","Nombre de personnes plein tarif","Nombre de personnes mineures","Nombre de titulaires d’un contrat de travail saisonnier  employés dans la commune","Nombre de personnes bénéficiant d’un hébergement d’urgence ","Montant taxe perçue","Taxe aditionnelle départemantale (10%)\nCalcul : (montant taxe perçue x 0,1)\nRAPPEL : CETTE TAXE N'EST A COLLECTER QU'A PARTIR DU 1er AVRIL 2025"]
[null,null,null,null,null,null,{"$f":"(C15*B15)*$H$11","v":0},{"$f":"G15*0.1","v":0}]
[null,null,null,null,null,null,0,0]
[null,null,null,null,null,null,0,0]
[null,null,null,null,null,null,0,0]
[null,null,null,null,null,null,0,0]
[null,null,null,null,null,null,0,0]
[null,null,null,null,null,null,0,0]
[null,null,null,null,null,null,0,0]
[null,null,null,null,null,null,0,0]
[null,null,null,null,null,null,0,0]
[null,null,null,null,null,null,0,0]
[null,null,null,null,null,null,0,0]
[null,null,null,null,null,null,0,0]
[null,null,null,null,null,null,0,0]
[null,null,null,null,null,null,0,0]
[null,null,null,null,null,null,0,0]
[null,null,null,null,null,null,0,0]
[null,null,null,null,null,null,0,0]
[null,null,null,null,null,null,0,0]
[null,null,null,null,null,null,0,0]
[null,null,null,null,null,null,0,0]
[null,null,null,null,null,null,0,0]
[null,null,null,null,null,null,0,0]
[null,null,null,null,null,null,0,0]
[null,null,null,null,null,null,0,0]
[null,null,null,null,null,null,0,0]
[null,null,null,null,null,null,0,0]
[null,null,null,null,null,null,0,0]
[null,null,null,null,null,null,0,0]
[null,null,null,null,null,null,0,0]
[null,null,null,null,null,null,0,0]
[null,null,null,null,null,null,0,0]
[null,null,null,null,null,null,0,0]
[null,null,null,null,null,null,0,0]
[null,null,null,null,null,null,0,0]
["TOTAL",null,{"$f":"SUM(C15:C49)","v":0},0,0,0,0,0]

{"sheet":"Registre loueur non classé","index":1,"n_rows":57,"n_cols":10,"rows_kept":57,"cut":false,"hidden":false,"merged":[[57,0,57,5],[57,9,57,11],[2,0,2,8],[8,2,8,8],[9,0,9,1],[10,0,10,1],[10,2,10,4],[7,2,7,8],[0,0,0,8],[1,0,1,8],[3,0,3,8],[6,1,6,3],[6,5,6,8]]}
["COMMUNAUTE DE COMMUNES TERRES TOULOISES"]
["Rue du Mémorial du Génie, CS 40 325 Ecrouves, 54 201 Toul cedex - Tél 03.83.43.2376  / contact@terrestouloises.com"]
["REGISTRE DU LOUEUR"]
["Hébergements non classés"]
["Mois",null,null,"Année",null," "]
[]
["Etablissement :",null,null,null,"Nom du propriétaire :"]
["Adresse de l'établissement :"]
["Adresse du proriétaire :"]
["Capacité totale d'accueil :",null,null,null,"Nb de chambres :"]
["Nature et Classement de l'hébergement",null,"Meublé de tourisme non classé ou en attente de classement",null,null,"Montant taxe séjour :",0.04,"Tarif plafond :",1.1000000000000001]
[]
[]
[]
[1,2,3,4,5,6,7,8,"9 = (3) x (8)",10]
["Dates d'arrivée","Nombre de nuits (Durée du séjour)","Nombre de personnes plein tarif","Nombre de personnes mineures (exonérées)","Nombre de titulaires d’un contrat de travail saisonnier employés dans la commune (exonérés)","Nombre de personnes bénéficiant d’un hébergement d’urgence  (exonérées)","Montant de la location (HT) pour la durée du séjour","Montant de taxe par nuitée","Montant taxe CC2T","Taxe aditionnelle départemantale (10%)\nCalcul : (montant taxe perçue x 0,1)\nRAPPEL : CETTE TAXE N'EST A COLLECTER QU'A PARTIR DU 1er AVRIL 2025"]
[null,null,null,null,null,null,null,{"$f":"IF(OR(B17=0,C17+D17+E17+F17=0),\"\",MIN(G17/(C17+D17+E17+F17)/B17*$G$11,2.3,$I$11))","v":""},{"$f":"IF(H17=\"\",0,H17*C17*B17)","v":0},{"$f":"(I17*0.1)","v":0}]
[null,null,null,null,null,null,null,"",0,{"$f":"(I18*0.1)","v":0}]
[null,null,null,null,null,null,null,"",0,0]
[null,null,null,null,null,null,null,"",0,0]
[null,null,null,null,null,null,null,"",0,0]
[null,null,null,null,null,null,null,"",0,0]
[null,null,null,null,null,null,null,"",0,0]
[null,null,null,null,null,null,null,"",0,0]
[null,null,null,null,null,null,null,"",0,0]
[null,null,null,null,null,null,null,"",0,0]
[null,null,null,null,null,null,null,"",0,0]
[null,null,null,null,null,null,null,"",0,0]
[null,null,null,null,null,null,null,"",0,0]
[null,null,null,null,null,null,null,"",0,0]
[null,null,null,null,null,null,null,"",0,0]
[null,null,null,null,null,null,null,"",0,0]
[null,null,null,null,null,null,null,"",0,0]
[null,null,null,null,null,null,null,"",0,0]
[null,null,null,null,null,null,null,"",0,0]
[null,null,null,null,null,null,null,"",0,0]
[null,null,null,null,null,null,null,"",0,0]
[null,null,null,null,null,null,null,"",0,0]
[null,null,null,null,null,null,null,"",0,0]
[null,null,null,null,null,null,null,"",0,0]
[null,null,null,null,null,null,null,"",0,0]
[null,null,null,null,null,null,null,"",0,0]
[null,null,null,null,null,null,null,"",0,0]
[null,null,null,null,null,null,null,"",0,{"$f":"(I44*0.1)","v":0}]
[null,null,null,null,null,null,null,"",0,0]
[null,null,null,null,null,null,null,"",0,0]
[null,null,null,null,null,null,null,"",0,0]
[null,null,null,null,null,null,null,"",0,0]
[null,null,null,null,null,null,null,"",{"$f":"IF(H49=\"\",0,H49*C49*B49)","v":0},0]
[null,null,null,null,null,null,null,"",{"$f":"IF(H50=\"\",0,H50*C50*B50)","v":0},0]
[null,null,null,null,null,null,null,"",{"$f":"IF(H51=\"\",0,H51*C51*B51)","v":0},0]
[null,null,null,null,null,null,null,"",{"$f":"IF(H52=\"\",0,H52*C52*B52)","v":0},0]
[null,null,null,null,null,null,null,"",0,0]
[null,null,null,null,null,null,null,"",0,0]
[null,null,null,null,null,null,null,"",0,0]
[null,null,null,null,null,null,null,"",0,0]
["TOTAL",{"$f":"SUM(B17:B56)","v":0},{"$f":"SUM(C17:C56)","v":0},{"$f":"SUM(D17:D56)","v":0},{"$f":"SUM(E17:E56)","v":0},{"$f":"SUM(F17:G56)","v":0},{"$f":"SUM(G17:G56)","v":0},null,{"$f":"SUM(I17:I56)","v":0},{"$f":"SUM(J17:J56)","v":0}]

{"sheet":"MEMO","index":2,"n_rows":15,"n_cols":6,"rows_kept":15,"cut":false,"hidden":false,"merged":[[6,5,10,11],[2,1,3,3],[1,1,1,3],[5,5,5,11],[13,5,13,11],[12,5,12,11]]}
[]
[null,"TAXE DE SEJOUR 2024/2025"]
[null,"Tarifs applicables en fonction de la classe de l'hébergement"]
[]
[]
[null,"Catégorie des hébergements","Taux applicables CC Terres Touloises (CC2T)","Taux applicables CC2T + taxe départementale additionnelle (10%)",null,"Sont exonérés"]
[null,"Palace",1.1000000000000001,1.21,null,"Les personnes âgées de moins de 18 ans \nLes titulaires d'un contrat de travail saisonnier employés dans la commune \nLes bénéficiaires d'un hébergement d'urgence ou d'un relogement temporaire \nLes propriétaires de résidence secondaire pour laquelle ils acquittent la taxe d'habitation \n"]
[null,"Hôtel/résidence/meublé de tourisme 5 étoiles",1.1000000000000001,1.21]
[null,"Hôtel/résidence/meublé de tourisme 4 étoiles",1.1000000000000001,1.21]
[null,"Hôtel/résidence/meublé de tourisme 3 étoiles",0.8,0.88]
[null,"Hôtel/résidence/meublé de tourisme 2 étoiles",0.75,0.82499999999999996]
[null,"Hôtel/résidence/meublé de tourisme 1 étoile + village vacances (1, 2 ou 3 étoiles) + chambre d’hôtes",0.55000000000000004,0.60499999999999998]
[null,"Terrain de camping et de caravanage (3, 4, 5 étoiles) + emplacement dans les aires de camping-car et des parcs de stationnement tourisitique par tranche de 24h",0.4,0.44,null,"Contacts utiles"]
[null,"Terrain de camping et de caravanage 1 et 2 étoiles + tout autre terrain d’hébergement de plein air de caractéristique équivalente + part de plaisance",0.2,0.22,null,"Maison du Tourisme : 1 Pl. Charles de Gaulle, 54200 Toul - 03 83 64 90 60\nCommunauté de communes Terres Touloises :  Rue du Mémorial du Génie, 54200 Écrouves - 03 83 43 23 76\n"]
[null,"Hébergement en attente de classement ou sans classement à l’exception des hébergements de plein air + logement inscrit sur une plateforme web (AirBnB, Booking, Abritel, Gîtes de France…)","4% avec un maximum d'1,10 €",4.3999999999999997E-2]